{"text_format":"1","workbook":"xlsx","n_sheets":1,"sheets":["Доходы"],"not_rendered":{"charts":0,"images":0,"macros":1,"external_links":0,"defined_names":22,"comments":0,"pivot_tables":0},"unopened":[],"bounds":{"document_bytes":16777216,"sheet_cells":100000,"rows_first":2000,"rows_last":500,"rows_between":2000,"halvings":0,"cell_chars":16384,"cell_head_chars":4096},"cells_cut":0,"cells_raw":0,"read":"whole","date_system":"1900"}

{"sheet":"Доходы","index":0,"n_rows":85,"n_cols":10,"rows_kept":85,"cut":false,"hidden":false,"merged":[[11,0,22,0],[11,1,22,1],[11,2,22,2],[11,3,22,3],[11,4,11,6],[11,7,22,7],[5,1,5,3],[0,0,0,8],[1,0,1,8],[6,1,6,4],[12,4,22,4],[12,6,22,6],[12,5,22,5]]}
["ОТЧЕТ ОБ ИСПОЛНЕНИИ БЮДЖЕТА"]
["ГЛАВНОГО РАСПОРЯДИТЕЛЯ, РАСПОРЯДИТЕЛЯ, ПОЛУЧАТЕЛЯ БЮДЖЕТНЫХ СРЕДСТВ, ГЛАВНОГО АДМИНИСТРАТОРА, АДМИНИСТРАТОРА ИСТОЧНИКОВ ФИНАНСИРОВАНИЯ ДЕФИЦИТА БЮДЖЕТА, ГЛАВНОГО АДМИНИСТРАТОРА, АДМИНИСТРАТОРА ДОХОДОВ БЮДЖЕТА"]
[null,null,null,null,null,null,null,"КОДЫ",null,"Форма по ОКУД"]
[null,"на 01 января 2015 г.",null,null,null,null,null,"0503127",null,"        Дата"]
[null,null,null,null,null,null,null,"01.01.15 г."]
["Главный распорядитель, распорядитель, получатель бюджетных средств, главный администратор, администратор доходов бюджета, главный администратор, администратор источников финансирования дефицита бюджета","НЕДОКУРСКИЙ СЕЛЬСОВЕТ",null,null,null,null,null,"04095486",null,"    по ОКПО"]
["Наименование бюджета","Администрация Недокурского сельсовета Кежемского района Красноярского края",null,null,null,null,null,"807",null,"Глава по БК"]
["Периодичность: годовая",null,null,null,null,null,null,"042807000",null,"по ОКАТО"]
["Единица измерения: руб.",null,"1. Доходы бюджета",null,null,null,null,"383",null,"         по ОКЕИ"]
[]
[]
[" Наименование показателя","Код строки","Код дохода по бюджетной классификации","Утвержденные бюджетные назначения","Исполнено",null,null,"Неисполненные назначения"]
[null,null,null,null,"через финансовые органы","через банковские счета","некассовые операции"]
[]
[]
[]
[]
[]
[]
[]
[]
[]
[]
[1,2,3,"4","5","6","7","8"]
["Доходы бюджета - всего","010","X",{"$f":"D27+D68","v":25702764.270000003},{"$f":"E27+E68","v":25341653.000000004},{"$f":"F27+F68","v":0},{"$f":"G27+G68","v":0},{"$f":"IF(OR(D25=\"-\",E25=D25),\"-\",D25-IF(E25=\"-\",0,E25))","v":361111.26999999955}]
["в том числе:"]
["НАЛОГОВЫЕ И НЕНАЛОГОВЫЕ ДОХОДЫ","","000 10000000000000 000",{"$f":"D28+D41+D47+D60+D64+D67+D66","v":1011252},{"$f":"E28+E41+E47+E60+E64+E67+E66+E65","v":1004724.7299999999},null,null,{"$f":"IF(OR(D27=\"-\",E27=D27),\"-\",D27-IF(E27=\"-\",0,E27))","v":6527.270000000135}]
["НАЛОГИ НА ПРИБЫЛЬ, ДОХОДЫ","","182 10100000000000 000",{"$f":"D29","v":682189},{"$f":"E29","v":689181.61999999988},{"$f":"F29","v":0},{"$f":"G29","v":0},-6992.6199999998789]
["Налог на доходы физических лиц","","182 10102000010000 110",{"$f":"FIO+D34+D37","v":682189},{"$f":"E30+E34+E37","v":689181.61999999988},null,null,-6992.6199999998789]
["Налог на доходы физических лиц с доходов, источником которых является налоговый агент, за исключением доходов, в отношении которых исчисление и уплата налога осуществляются в соответствии со статьями 227, 2271 и 228 Налогового кодекса Российской Федерации","","182 10102010010000 110",{"$f":"D31+D32+D33","v":600568},{"$f":"E31+E32+E33","v":607562.11999999988},null,null,-6994.1199999998789]
["Налог на доходы физических лиц с доходов, источником которых является налоговый агент, за исключением доходов, в отношении которых исчисление и уплата налога осуществляются в соответствии со статьями 227, 2271 и 228 Налогового кодекса Российской Федерации (сумма платежа)","","182 10102010011000 110",{"$f":"510000-15418-21669+97000-6957","v":562956},{"$f":"565117.61+3890.46+578+365.2","v":569951.2699999999},null,null,{"$f":"IF(OR(D31=\"-\",E31=D31),\"-\",D31-IF(E31=\"-\",0,E31))","v":-6995.2699999999022}]
["Налог на доходы физических лиц с доходов, источником которых является налоговый агент, за исключением доходов, в отношении которых исчисление и уплата налога осуществляются в соответствии со статьями 227, 2271 и 228 Налогового кодекса Российской Федерации (пени и проценты по соответствующему платежу)","","182 10102010012000 110",{"$f":"15418+525","v":15943},{"$f":"15417.26+525.39","v":15942.65},null,null,{"$f":"IF(OR(D32=\"-\",E32=D32),\"-\",D32-IF(E32=\"-\",0,E32))","v":0.3500000000003638}]
["Налог на доходы физических лиц с доходов, источником которых является налоговый агент, за исключением доходов, в отношении которых исчисление и уплата налога осуществляются в соответствии со статьями 227, 227.1 и 228 Налогового кодекса Российской Федерации суммы денежных взысканий (штрафов) по соответствующему платежу согласно законодательству Российской Федерации)","","182 10102010013000 110",21669,21668.2,null,null,{"$f":"IF(OR(D33=\"-\",E33=D33),\"-\",D33-IF(E33=\"-\",0,E33))","v":0.7999999999992724}]
["Налог на доходы физических лиц с доходов, полученных от осуществления деятельности физическими лицами, зарегистрированными в качестве индивидуальных предпринимателей, нотариусов, занимающихся частной практикой, адвокатов, учредивших адвокатские кабинеты и других лиц, занимающихся частной практикой в соответствии со статьей 227 Налогового кодекса Российской Федерации","","182 10102020010000 110",{"$f":"D35+D36","v":81479},{"$f":"E35+E36","v":81478.12},null,null,0.88000000000465661]
["Налог на доходы физических лиц с доходов, полученных от осуществления деятельности физическими лицами, зарегистрированными в качестве индивидуальных предпринимателей, нотариусов, занимающихся частной практикой, адвокатов, учредивших адвокатские кабинеты и других лиц, занимающихся частной практикой в соответствии со статьей 227 Налогового кодекса Российской Федерации (сумма платежа)","","182 10102020011000 110",{"$f":"80681+796","v":81477},81476.399999999994,null,null,0.60000000000582077]
["Налог на доходы физических лиц с доходов, полученных от осуществления деятельности физическими лицами, зарегистрированными в качестве индивидуальных предпринимателей, нотариусов, занимающихся частной практикой, адвокатов, учредивших адвокатские кабинеты и других лиц, занимающихся частной практикой в соответствии со статьей 227 Налогового кодекса Российской Федерации (сумма платежа)","","182 10102020012000 110",2,1.72,null,null,{"$f":"IF(OR(D36=\"-\",E36=D36),\"-\",D36-IF(E36=\"-\",0,E36))","v":0.28000000000000003}]
["Налог на доходы физических лиц с доходов, полученных физическими лицамив соответствии со статьей 228 Налогового кодекса Российской Федерации (сумма денежныхвзысканий (штрафов) по соответствующему платежу согласно законодательству Российской Федерации)","","182 10102030010000 110",{"$f":"D38+D40+D39","v":142},{"$f":"E38+E40+E39","v":141.38},null,null,{"$f":"IF(OR(D37=\"-\",E37=D37),\"-\",D37-IF(E37=\"-\",0,E37))","v":0.62000000000000455}]
["Налог на доходы физических лиц с доходов, полученных физическими лицамив соответствии со статьей 228 Налогового кодекса Российской Федерации (сумма денежныхвзысканий (штрафов) по соответствующему платежу согласно законодательству Российской Федерации)","","182 10102030011000 110",37,36.4,null,null,{"$f":"IF(OR(D38=\"-\",E38=D38),\"-\",D38-IF(E38=\"-\",0,E38))","v":0.60000000000000142}]
["Налог на доходы физических лиц с доходов, полученных физическими лицамив соответствии со статьей 228 Налогового кодекса Российской Федерации (сумма денежныхвзысканий (штрафов) по соответствующему платежу согласно законодательству Российской Федерации)","","182 10102030012000 110",5,4.9800000000000004,null,null,{"$f":"IF(OR(D39=\"-\",E39=D39),\"-\",D39-IF(E39=\"-\",0,E39))","v":1.9999999999999574E-2}]
["Налог на доходы физических лиц с доходов, полученных физическими лицамив соответствии со статьей 228 Налогового кодекса Российской Федерации (сумма денежныхвзысканий (штрафов) по соответствующему платежу согласно законодательству Российской Федерации)","","182 10102030013000 110",{"$f":"50+50","v":100},100,null,null,{"$f":"IF(OR(D40=\"-\",E40=D40),\"-\",D40-IF(E40=\"-\",0,E40))","v":"-"}]
["НАЛОГИ НА ТОВАРЫ (РАБОТЫ, УСЛУГИ), РЕАЛИЗУЕМЫЕ НА ТЕРРИТОРИИ РОССИЙСКОЙ ФЕДЕРАЦИИ","","100 10300000000000 000",{"$f":"D42","v":81588},{"$f":"E42","v":77972.919999999984},null,null,3615.0800000000163]
["Акцизы по подакцизным товарам (продукции), производимым на территории Российской Федерации","","100 10302000010000 110",{"$f":"D43+D44+D45+D46","v":81588},{"$f":"E43+E44+E45+E46","v":77972.919999999984},null,null,3615.0800000000163]
["Доходы от уплаты акцизов на дизельное топливо, зачисляемые в консолидированные бюджеты субъектов Российской Федерации","","100 10302230010000 110",{"$f":"38500-10226","v":28274},29428.3,null,null,-1154.2999999999993]
["Доходы от уплаты акцизов на моторные масла для дизельных и (или) карбюраторных (инжекторных) двигателей, зачисляемые в консолидированные бюджеты субъектов Российской Федерации","","100 10302240010000 110",{"$f":"800-148","v":652},662.87,null,null,-10.870000000000005]
["Доходы от уплаты акцизов на автомобильный бензин, производимый на территории Российской Федерации, зачисляемые в консолидированные бюджеты субъектов Российской Федерации","","100 10302250010000 110",{"$f":"62300-13238","v":49062},50414.1,null,null,{"$f":"IF(OR(D45=\"-\",E45=D45),\"-\",D45-IF(E45=\"-\",0,E45))","v":-1352.0999999999985}]
["Доходы от уплаты акцизов на прямогонный бензин, производимый на территории Российской Федерации, зачисляемые в консолидированные бюджеты субъектов Российской Федерации","","100 10302260010000 110",3600,-2532.35,null,null,{"$f":"D46-E46","v":6132.35}]
["НАЛОГИ НА ИМУЩЕСТВО","","182 10600000000000 000",{"$f":"D48+D52","v":54763},{"$f":"E48+E52","v":54869.03},{"$f":"F48+F52","v":0},{"$f":"G48+G52","v":0},-106.02999999999884]
["Налог на имущество физических лиц","","182 10601000000000 110",{"$f":"D49","v":45963},{"$f":"E49","v":45961.59},{"$f":"F49","v":0},{"$f":"G49","v":0},1.4100000000034925]
["Налог на имущество физических лиц, взимаемый по ставкам, применяемым к объектам налогообложения, расположенным в границах поселений","","182 10601030100000 110",{"$f":"D50+D51","v":45963},{"$f":"E50+E51","v":45961.59},null,null,1.4100000000034925]
["Налог на имущество физических лиц, взимаемый по ставкам, применяемым к объектам налогообложения, расположенным в границах поселений (сумма платежа)","","182 10601030101000 110",{"$f":"46000-4396-2000+1362","v":40966},40965.18,null,null,0.81999999999970896]
["Налог на имущество физических лиц, взимаемый по ставкам, применяемым к объектам налогообложения, расположенным в границах поселений (пени, проценты)","","182 10601030102000 110",{"$f":"4396+601","v":4997},4996.41,null,null,0.59000000000014552]
["Земельный налог","","182 10606000000000 110",{"$f":"D53+D56","v":8800},{"$f":"E53+E56","v":8907.4399999999987},{"$f":"F53+F56","v":0},{"$f":"G53+G56","v":0},-107.43999999999869]
["Земельный налог, взимаемый по ставкам, установленным в соответствии с подпунктом 1 пункта 1 статьи 394 Налогового кодекса Российской Федерации","","182 10606010000000 110",{"$f":"D54+D55","v":3800},{"$f":"E54+E55","v":3855.46},null,null,-55.460000000000036]
["Земельный налог, взимаемый по ставкам, установленным в соответствии с подпунктом 1 пункта 1 статьи 394 Налогового кодекса Российской Федерации и применяемым к объектам налогообложения, расположенным в границах поселений","","182 10606013101000 110",{"$f":"5200-51-1400","v":3749},3764.6,null,null,-15.599999999999909]
["Земельный налог, взимаемый по ставкам, установленным в соответствии с подпунктом 1 пункта 1 статьи 394 Налогового кодекса Российской Федерации и применяемым к объектам налогообложения, расположенным в границах поселений","","182 10606013102000 110",51,90.86,null,null,{"$f":"IF(OR(D55=\"-\",E55=D55),\"-\",D55-IF(E55=\"-\",0,E55))","v":-39.86}]
["Земельный налог, взимаемый по ставкам, установленным в соответствии с подпунктом 2 пункта 1 статьи 394 Налогового кодекса Российской Федерации","","182 10606020000000 110",{"$f":"D58+D57+D59","v":5000},{"$f":"E58+E57+E59","v":5051.9799999999996},null,null,-51.979999999999563]
["Земельный налог, взимаемый по ставкам, установленным в соответствии с подпунктом 2 пункта 1 статьи 394 Налогового кодекса Российской Федерации и применяемым к объектам налогообложения, расположенным в границах поселений (сумма платежа (ререрасчеты, недоимка и задолженность по соответствующему платежу, в том числе по отмененному)","","182 10606023101000 110",{"$f":"5000-3000-40","v":1960},2003.35,null,null,{"$f":"IF(OR(D57=\"-\",E57=D57),\"-\",D57-IF(E57=\"-\",0,E57))","v":-43.349999999999909}]
["Земельный налог, взимаемый по ставкам, установленным в соответствии с подпунктом 2 пункта 1 статьи 394 Налогового кодекса Российской Федерации и применяемым к объектам налогообложения, расположенным в границах поселений (пени и проценты по соответствующему платежу)","","182 10606023102000 110",40,48.63,null,null,-8.6300000000000026]
["Земельный налог, взимаемый по ставкам, установленным в соответствии с подпунктом 2 пункта 1 статьи 394 Налогового кодекса Российской Федерации и применяемым к объектам налогообложения, расположенным в границах поселений (пени и проценты по соответствующему платежу)","","182 10606023103000 110",3000,3000,null,null,{"$f":"IF(OR(D59=\"-\",E59=D59),\"-\",D59-IF(E59=\"-\",0,E59))","v":"-"}]
["ГОСУДАРСТВЕННАЯ ПОШЛИНА","","807 10800000000000 000",{"$f":"D61","v":16240},16240,0,0,"-"]
["Государственная пошлина за совершение нотариальных действий (за исключением действий, совершаемых консульскими учреждениями Российской Федерации)","","807 10804000010000 110",16240,16240,null,null,"-"]
["Государственная пошлина за совершение нотариальных действий должностными лицами органов местного самоуправления, уполномоченными в соответствии с законодательными актами Российской Федерации на совершение нотариальных действий","","807 10804020010000 110",16240,16240,null,null,"-"]
["Государственная пошлина за совершение нотариальных действий должностными лицами органов местного самоуправления, уполномоченными в соответствии с законодательными актами Российской Федерации на совершение нотариальных действий (сумма платежа)","","807 10804020011000 110",{"$f":"6800+9440","v":16240},16240,null,null,"-"]
["Доходы от использования имущества, находящегося в государственной муниципальной собственности",null,"903 11105013101000 120",{"$f":"3323+1044","v":4367},4366.7700000000004,null,null,0.22999999999956344]
["Невыясненные доходы бюджетов поселений",null,"807 11701050100000 180",0,-10009.92,null,null,{"$f":"IF(OR(D65=\"-\",E65=D65),\"-\",D65-IF(E65=\"-\",0,E65))","v":10009.92}]
["Прочие неналоговые доходы бюджетов поселений",null,"807 11705050100000 180",{"$f":"125355+9110","v":134465},134464.31,null,null,0.69000000000232831]
["Средства самообложения граждан, зачисляемые в бюджеты поселений",null,"807 11714030100000 180",{"$f":"36465+1175","v":37640},37640,null,null,{"$f":"IF(OR(D67=\"-\",E67=D67),\"-\",D67-IF(E67=\"-\",0,E67))","v":"-"}]
["БЕЗВОЗМЕЗДНЫЕ ПОСТУПЛЕНИЯ","","807 20000000000000 000",{"$f":"D69","v":24691512.270000003},{"$f":"E69","v":24336928.270000003},{"$f":"F69","v":0},{"$f":"G69","v":0},354584]
["БЕЗВОЗМЕЗДНЫЕ ПОСТУПЛЕНИЯ ОТ ДРУГИХ БЮДЖЕТОВ БЮДЖЕТНОЙ СИСТЕМЫ РОССИЙСКОЙ ФЕДЕРАЦИИ","","807 20200000000000 000",{"$f":"D70+D75+D78+D79+D80+D81+D82+D83+D84+D85","v":24691512.270000003},{"$f":"E70+E75+E78+E79+E80+E81+E82+E83+E84+E85","v":24336928.270000003},{"$f":"F70+F75+F85++F78+F79+F80+F82+F81+F83","v":0},{"$f":"G70+G75+G85++G78+G79+G80+G82+G81+G83","v":0},354584]
["Дотации бюджетам субъектов Российской Федерации и муниципальных образований","","807 20201000000000 151",{"$f":"D71+D73","v":7235502},{"$f":"E71+E73","v":6984953},{"$f":"F71+F73","v":0},{"$f":"G71+G73","v":0},250549]
["Дотации на выравнивание бюджетной обеспеченности","","807 20201001000000 151",{"$f":"D72","v":387222},{"$f":"E72","v":387222},null,null,"-"]
["Дотации бюджетам поселений на выравнивание бюджетной обеспеченности","","807 20201001100000 151",387222,387222,null,null,"-"]
["Дотации бюджетам на поддержку мер по обеспечению сбалансированности бюджетов","","807 20201003000000 151",{"$f":"D74","v":6848280},{"$f":"E74","v":6597731},null,null,250549]
["Дотации бюджетам поселений на поддержку мер по обеспечению сбалансированности бюджетов","","807 20201003100000 151",6848280,6597731,null,null,250549]
["Субвенции бюджетам субъектов Российской Федерации и муниципальных образований",null,"807 20203000000000 151",80100,{"$f":"E76","v":80100},null,null,"-"]
["Субвенции бюджетам муниципальных образований края на осуществление государственных полномочий по первичному воинскому учету на территориях, где отсутствуют военные комиссариаты, в соответствии с Федеральным законом",null,"807 20203001500000 151",80100,{"$f":"E77","v":80100},null,null,"-"]
["Субвенции бюджетам муниципальных образований края на осуществление государственных полномочий по первичному воинскому учету на территориях, где отсутствуют военные комиссариаты, в соответствии с Федеральным законом",null,"807 20203001510000 151",80100,{"$f":"66750+6675+6675","v":80100},null,null,"-"]
["Иные межбюджетные трансферты на реализацию Закона края от 23 апреля 2009 года №8-3170 \"О наделении органов местного самоуправления муниципальных образований края государственными полномочиями по созданию и обеспечению деятельности административных комиссий\" на 2014 год и плановый период 2015-2016 годов",null,"807 20204999100008 151",{"$f":"2270-23","v":2247},{"$f":"189+2058","v":2247},null,null,{"$f":"IF(OR(D78=\"-\",E78=D78),\"-\",D78-IF(E78=\"-\",0,E78))","v":"-"}]
["Межбюджетные трансферты на государственную поддержку действующих и вновь создаваемых спортивных клубов по месту жительства граждан",null,"807 20204999100036 151",356570,356570,null,null,"-"]
["Межбюджетные трансферты на переселение граждан из аварийного жилищного фонда в муниципальных образованиях Красноярского края на 2013-2015 годы",null,"807 20204999100039 151",16086496.6,16086496.6,null,null,"-"]
["Межбюджетные трансферты на  энергосбережение и повышение энергетической эффективности в Красноярском крае на 2010-2012 г. и на период до 2020 г. в части расходов на реализацию мероприятий по энергосбережению и повышению энергетической эффективности   в связи с достижением наилучших показателей в области энергосбережения",null,"807 20204999100040 151",98900,98900,null,null,"-"]
["Межбюджетные трансферты  на содержание автомобильных дорог общего пользования местного значения городских округов, городских и сельских поселений за счет средств дорожного фонда Красноярского края  в рамках подпрограммы  «Дороги Красноярья» государственной программы Красноярского края «Развитие транспортной системы Красноярского края» ",null,"807 20204999100042 151",394400,394400,null,null,"-"]
["Межбюджетные трансферты  на подготовку генеральных планов городских и сельских поселений, на разработку проектов планировки и межевания земельных участков для жилищного строительства, формирование и постановку земельных участков на кадастровый учет в рамках подпрограммы \"Стимулирование жилищного строительства на территории Красноярского края\" государственной программы Красноярского края \"Создание условий для обеспечения доступным  и комфортным жильем граждан Красноярского края\"",null,"807 20204999100045 151",80546.67,80546.67,null,null,"-"]
["Межбюджетные трансферты на реализацию проектов по благоустройству территорий поселений  в рамках подпрограммы «Поддержка муниципальных проектов и мероприятий по благоустройству территорий» государственной программы Красноярского края «Содействие развитию местного самоуправления»",null,"807 20204999100046 151",285000,252715,null,null,{"$f":"IF(OR(D84=\"-\",E84=D84),\"-\",D84-IF(E84=\"-\",0,E84))","v":32285}]
["Межбюджетные трансферты на подключение общедоступных библиотек Российской Федерации к сети Интернет и развитие системы библиотечного дела с учетом задачи расширения информационных технологий и оцифровки в рамках подпрограммы \"Обеспечение условий реализации государственной программы и прочие мероприятия\" государственной программы \"Развитие культуры\"",null,"807 20204999100051 151",71750,0,null,null,71750]